{"text_format":"2","workbook":"xlsx","n_sheets":3,"sheets":["Összesítés","Csőszerelés","Földmunka"],"not_rendered":{"charts":0,"images":0,"macros":0,"external_links":1,"defined_names":0,"comments":0,"pivot_tables":0},"unopened":[],"bounds":{"document_bytes":16777216,"sheet_cells":100000,"run_cost":"one","rows_first":2000,"rows_last":500,"rows_between":2000,"halvings":0,"cell_chars":16384,"cell_head_chars":4096},"cells_cut":0,"cells_raw":0,"read":"whole","date_system":"1900"}

{"sheet":"Összesítés","index":0,"n_rows":15,"n_cols":5,"rows_kept":15,"cut":false,"hidden":false,"merged":[[0,0,0,5]]}
["Szeged, SZTE GMF, Hattyas sor 6-8. Kültéri tűzcsapok telepítése, vízmérőakna építés"]
[]
[null,"No.","Megnevezés","Anyag","Díj"]
[]
[null,1,"Csőszerelés",{"$f":"Csőszerelés!G29","v":0},{"$f":"Csőszerelés!H29","v":0}]
[]
[null,2,"Földmunka",{"$f":"Földmunka!G14","v":0},{"$f":"Földmunka!H14","v":0}]
[]
[null,null,null,{"$f":"SUM(D5:D8)","v":0},{"$f":"SUM(E5:E8)","v":0}]
[]
[null,null,"Összesen Nettó:",null,{"$f":"SUM(D5:E7)","v":0}]
[]
[null,null,"Áfa:",null,{"$f":"E11*0.27","v":0}]
[]
[null,null,"Összesen Bruttó:",null,{"$f":"SUM(E11:E13)","v":0}]

{"sheet":"Csőszerelés","index":1,"n_rows":29,"n_cols":8,"rows_kept":29,"cut":false,"hidden":false,"merged":[[0,2,0,3]]}
["sorsz.","Megnevezés","menny.",null,"Anyag","Díj","Xanyag","Xdíj"]
[1,"KPE nyomócső szerelése, földárokban, hegesztett kötésekkel, idomok nélkül, csőátmérő: 110 mm PE ivóvíz nyomócső PE 100 SDR 17 PN 10 110 mm x 6,6 mm",270,"m",0,0,{"$f":"E2*C2","v":0},{"$f":"F2*C2","v":0}]
[2,"KPE nyomócsőidom szerelése, földárokban, hegesztett kötésekkel, csőátmérő: 110 mm\n PE 90 fokos könyök PE 100 SDR 11",6,"db",0,0,{"$f":"E3*C3","v":0},{"$f":"F3*C3","v":0}]
[3,"KPE nyomócsőidom szerelése, földárokban, hegesztett kötésekkel, csőátmérő: 110 mm\n PE elektrofúziós egyenes összekötő idom, PE 100 SDR 11",6,"db",0,0,0,0]
[4,"KPE nyomócsőidom szerelése, földárokban, hegesztett kötésekkel, csőátmérő: 110 mm\n PE elektrofúziós egál T-idom, PE 100 SDR 11",4,"db",0,0,0,0]
[5,"KPE nyomócsőidom szerelése, földárokban, hegesztett kötésekkel, csőátmérő: 110 mm\n PE elektrofúziós szűkítő idom 110-63mm, PE 100 SDR 11",4,"db",0,0,0,0]
[6,"KPE nyomócsőidom szerelése, földárokban, hegesztett kötésekkel, csőátmérő: 110 mm\n PE elektrofúziós szűkítő idom 63-32mm, PE 100 SDR 11",4,"db",0,0,0,0]
[7,"Megcsapoló idom felszerelése KPE csőre, 110mm-3/4\"",2,"db",0,0,0,0]
[8,"Karimás kötés készítése, hideg- meleg- és forróvíz vezetékre, DN 100-ig",30,"db",0,0,0,0]
[9,"Föld feletti tűzcsap DN100 1500mm Hawle",2,"db",0,0,0,0]
[10,"Kétoldalon karimás szerelvény elhelyezése ellenkarimákkal,\nDN 100 PN 10 - PN 16, Tolózár DN100 Hawle, beépítése",6,"db",0,0,0,0]
[11,"Kétoldalon karimás szerelvény elhelyezése ellenkarimákkal,\nDN 100 PN 10 - PN 16, FF-idom L=500mm",2,"db",0,0,0,0]
[12,"Kétoldalon karimás szerelvény elhelyezése ellenkarimákkal,\nDN 100 PN 10 - PN 16, FF-idom L=1000mm",3,"db",0,0,{"$f":"E13*C13","v":0},{"$f":"F13*C13","v":0}]
[13,"Kétoldalon karimás szerelvény elhelyezése ellenkarimákkal,\nDN 100 PN 10 - PN 16, visszacsapó szelep",2,"db",0,0,0,0]
[14,"Beépítési készlet, beépítése",2,"db",0,0,0,0]
[15,"Kétoldalon karimás szerelvény elhelyezése ellenkarimákkal,\nDN 100 PN 10 - PN 16, DN100 QN idom, beépítése",2,"db",0,0,0,0]
[16,"Beton megtámasztás a tűzcsap alá",2,"db",0,0,0,0]
[17,"Multi-Joint beépítése, DN50 tok-tok",4,"db",0,0,0,0]
[18,"Multi-Joint beépítése, DN100 tok-tok",2,"db",0,0,0,0]
[19,"Multi-Joint beépítése, DN100 tok-karima",8,"db",0,0,0,0]
[20,"Kétoldalon karimás szerelvény elhelyezése ellenkarimákkal,\nDN 100 PN 10 - PN 16, DN100 vízóra beépítése, a vízmű biztosítja!",2,"db",0,0,{"$f":"E21*C21","v":0},{"$f":"F21*C21","v":0}]
[21,"Három- vagy négyoldalon karimás szerelvény elhelyezése ellenkarimákkal, DN 100 PN 10 - PN 16, karimás T-idom egál\n",2,"db",0,0,0,0]
[22,"Nyomáspróba elvégzése, vízzel",2,"db",0,0,0,0]
[23,"Vízmű általi élőre kötés",1,"klt",0,0,0,0]
[24,"Megvalósulási terv készítése",1,"klt",0,0,0,0]
[25,"Víz vezeték fertőtlenítése, vízminta jegyzőkönyvvel",2,"klt",0,0,0,0]
[]
[]
[{"$nulls":6},{"$f":"SUM(G2:G28)","v":0},{"$f":"SUM(H2:H28)","v":0}]

{"sheet":"Földmunka","index":2,"n_rows":14,"n_cols":8,"rows_kept":14,"cut":false,"hidden":false,"merged":[[0,2,0,3]]}
["sorsz.","Megnevezés","menny.",null,"Anyag","Díj","Xanyag","Xdíj"]
[1,"Munkaárok földkiemelése közművesített területen,\nkézi erővel, bármely konzisztenciájú talajban, dúcolás nélkül, 2,0 m˛ szelvényig, III. talajosztály",{"$f":"([1]Csőszerelés!C2*0.5*1*1.1)*0.8","v":118.80000000000001},"m3",0,0,{"$f":"E2*C2","v":0},{"$f":"F2*C2","v":0}]
[2,"Munkaárok földkiemelése közművesített területen,\nGéppel, bármely konzisztenciájú talajban, dúcolás nélkül, 2,0 m˛ szelvényig, III. talajosztály",{"$f":"([1]Csőszerelés!C2*0.5*1*1.1)*0.2","v":29.700000000000003},"m3",0,0,0,0]
[3,"Földvisszatöltés munkagödörbe vagy munkaárokba,\ntömörítés nélkül, réteges elterítéssel, I-IV. osztályú talajban, kézi erővel, az anyag súlypontja karoláson belül,",{"$f":"C2+C3-C5","v":94.5},"m3",0,0,0,0]
[4,"Talajjavító réteg készítése\nvonalas létesítményeknél, 3,00 m szélességig vagy építményen belül, homokból, Természetes szemmegoszlású homok",{"$f":"[1]Csőszerelés!C2*0.4*0.5*1","v":54},"m3",0,0,0,0]
[5,"Tömörítés",{"$f":"C2+C3+C7","v":150.5},"m3",0,0,0,0]
[6,"Szivárgó paplan készítése kész tükörre, kohókő zúzalékból",2,"m3",0,0,0,0]
[7,"Szivárgó paplan készítése kész tükörre, durva homokból",2,"m3",0,0,0,0]
[8,"Munkagödör víztelenítése, nyíltvíztartásnál, üzemelés, 0-500 liter/perc teljesítményű szivattyúval",40,"óra",0,0,0,0]
[9,"Vízóra akna behelyezése előre elkészített tükörre, vasbeton műtárgy a CV-30/4 terv alapján, daruzással, aknafedlappal",2,"db",0,0,0,{"$f":"F10*C10","v":0}]
[10,"Geodéziai bemérés",{"$f":"[1]Csőszerelés!C2","v":270},"m",0,0,0,0]
[]
[]
[{"$nulls":6},{"$f":"SUM(G2:G13)","v":0},{"$f":"SUM(H2:H13)","v":0}]